fUSD/lending_fUSD_20240427
["ID","MTS","AMOUNT","RATE_DAILY","PERIOD"]
[323710255,1714179041052,-461.27,0.00012899,2]
[323710256,1714179041061,-500.0,0.00012899,2]
[323710257,1714179041071,-305.96,0.00012899,2]
[323710258,1714179041080,-500.0,0.00012899,2]
[323710259,1714179041090,-501.26242462,0.00012899,2]
[323710260,1714179041099,-506.95400221,0.00012899,2]
[323710261,1714179041108,-500.99131182,0.00012899,2]
[323710262,1714179041118,-500.0,0.00012899,2]
[323710263,1714179041128,-500.0,0.00012899,2]
[323710264,1714179041137,-500.0012321,0.00012899,2]
[323710265,1714179041147,-500.0,0.00012899,2]
[323710266,1714179041157,-500.0,0.00012899,2]
[323710267,1714179041166,-500.0,0.00012899,2]
[323710268,1714179041176,-500.0,0.00012899,2]
[323710269,1714179041185,-477.66,0.00012899,2]
[323710270,1714179041196,-500.53352982,0.00012899,2]
[323710271,1714179041206,-500.0,0.00012899,2]
[323710272,1714179041215,-500.0,0.00012899,2]
[323710273,1714179041225,-502.27327718,0.00012899,2]
[323710274,1714179041235,-500.0,0.00012899,2]
[323710275,1714179041244,-500.0,0.00012899,2]
[323710276,1714179041253,-500.0,0.00012899,2]
[323710277,1714179041262,-285.35028379,0.00012899,2]
[323710278,1714179041271,-500.0,0.00012899,2]
[323710279,1714179041280,-270.64,0.00012899,2]
[323710280,1714179041290,-500.0,0.00012899,2]
[323710281,1714179041300,-500.71562997,0.00012899,2]
[323710282,1714179041312,-500.0,0.00012899,2]
[323710283,1714179041321,-238.66,0.00012899,2]
[323710284,1714179041332,-500.0,0.00012899,2]
[323710285,1714179041342,-500.0,0.00012899,2]
[323710286,1714179041352,-500.0,0.00012899,2]
[323710287,1714179041362,-500.0,0.00012899,2]
[323710288,1714179041371,-505.52919268,0.00012899,2]
[323710289,1714179041382,-384.61,0.00012899,2]
[323710290,1714179041391,-522.2,0.00012899,2]
[323710291,1714179041400,-500.0,0.00012899,2]
[323710292,1714179041410,-500.0,0.00012899,2]
[323710293,1714179041419,-500.0,0.00012899,2]
[323710294,1714179041428,-500.0,0.00012899,2]
[323710295,1714179041438,-500.0,0.00012899,2]
[323710296,1714179041447,-295.35,0.00012899,2]
[323710297,1714179041456,-688.22,0.00012899,2]
[323710298,1714179041465,-500.0,0.00012899,2]
[323710299,1714179041474,-500.0,0.00012899,2]
[323710300,1714179041484,-500.0,0.00012899,2]
[323710301,1714179041493,-1470.64,0.00012899,2]
[323710302,1714179041503,-500.0,0.00012899,2]
[323710303,1714179041514,-500.0,0.00012899,2]
[323710304,1714179041523,-500.0,0.00012899,2]
[323710305,1714179041532,-500.0,0.00012899,2]
[323710306,1714179041541,-500.0,0.00012899,2]
[323710307,1714179041550,-404.37,0.00012899,2]
[323710308,1714179041560,-500.0,0.00012899,2]
[323710309,1714179041570,-500.0,0.00012899,2]
[323710310,1714179041579,-684.6,0.00012899,2]
[323710311,1714179041588,-500.0,0.00012899,2]
[323710312,1714179041597,-500.0,0.00012899,2]
[323710313,1714179041607,-500.0,0.00012899,2]
[323710314,1714179041616,-500.0,0.00012899,2]
[323710315,1714179041626,-500.0,0.00012899,2]
[323710316,1714179041635,-620.72,0.00012899,2]
[323710317,1714179041645,-500.0,0.00012899,2]
[323710318,1714179041654,-500.0,0.00012899,2]
[323710319,1714179041663,-500.0,0.00012899,2]
[323710320,1714179041672,-500.0,0.00012899,2]
[323710321,1714179041682,-500.0,0.00012899,2]
[323710322,1714179041691,-546.98,0.00012899,2]
[323710323,1714179041700,-500.0,0.00012899,2]
[323710324,1714179041710,-500.0,0.00012899,2]
[323710325,1714179041720,-588.59,0.00012899,2]
[323710326,1714179041729,-500.0,0.00012899,2]
[323710327,1714179041738,-196.46,0.00012899,2]
[323710328,1714179041747,-500.0,0.00012899,2]
[323710329,1714179041757,-1352.97,0.00012899,2]
[323710330,1714179041768,-1352.97,0.00012899,2]
[323710331,1714179041778,-500.0,0.00012899,2]
[323710332,1714179041786,-1352.97,0.00012899,2]
[323710333,1714179041795,-500.0,0.00012899,2]
[323710334,1714179041805,-1352.97,0.00012899,2]
[323710335,1714179041814,-1352.97,0.00012899,2]
[323710336,1714179041823,-1352.97,0.00012899,2]
[323710337,1714179041833,-1352.97,0.00012899,2]
[323710338,1714179041842,-500.0,0.00012899,2]
[323710339,1714179041853,-1352.97,0.00012899,2]
[323710340,1714179041862,-1352.97,0.00012899,2]
[323710341,1714179041871,-1352.97,0.00012899,2]
[323710342,1714179041880,-1352.97,0.00012899,2]
[323710343,1714179041890,-1352.97,0.00012899,2]
[323710344,1714179041899,-1352.97,0.00012899,2]
[323710345,1714179041908,-1352.97,0.00012899,2]
[323710346,1714179041917,-1352.97,0.00012899,2]
[323710347,1714179041927,-1352.97,0.00012899,2]
[323710348,1714179041936,-1352.97,0.00012899,2]
[323710349,1714179041945,-500.0,0.00012899,2]
[323710350,1714179041954,-1352.97,0.00012899,2]
[323710351,1714179041963,-1352.97,0.00012899,2]
[323710352,1714179041972,-1352.97,0.00012899,2]
[323710353,1714179041981,-1352.97,0.00012899,2]
[323710354,1714179041990,-500.0,0.00012899,2]
[323710355,1714179042000,-500.0,0.00012899,2]
[323710356,1714179042009,-1352.97,0.00012899,2]
[323710357,1714179042019,-1352.97,0.00012899,2]
[323710358,1714179042028,-1353.07591384,0.00012899,2]
[323710359,1714179042037,-500.0,0.00012899,2]
[323710360,1714179042047,-500.0,0.00012899,2]
[323710361,1714179042057,-500.0,0.00012899,2]
[323710362,1714179042066,-500.0,0.00012899,2]
[323710363,1714179042075,-500.0,0.00012899,2]
[323710364,1714179042084,-500.0,0.00012899,2]
[323710365,1714179042093,-500.0,0.00012899,2]
[323710366,1714179042102,-500.0,0.00012899,2]
[323710367,1714179042112,-500.0,0.00012899,2]
[323710368,1714179042121,-500.0,0.00012899,2]
[323710369,1714179042130,-500.0,0.00012899,2]
[323710370,1714179042139,-500.0,0.00012899,2]
[323710371,1714179042148,-809.88,0.00012899,2]
[323710372,1714179042157,-500.0,0.00012899,2]
[323710373,1714179042166,-500.0,0.00012899,2]
[323710374,1714179042176,-500.0,0.00012899,2]
[323710375,1714179042185,-242.65171761,0.00012899,2]
[323710376,1714179042194,-615.34,0.00012899,2]
[323710377,1714179042203,-500.0,0.00012899,2]
[323710378,1714179042213,-500.0,0.00012899,2]
[323710379,1714179042222,-500.0,0.00012899,2]
[323710380,1714179042233,-500.0,0.00012899,2]
[323710381,1714179042242,-500.0,0.00012899,2]
[323710382,1714179042251,-500.0,0.00012899,2]
[323710383,1714179042261,-500.0,0.00012899,2]
[323710384,1714179042272,-1105.7,0.00012899,2]
[323710385,1714179042281,-500.0,0.00012899,2]
[323710386,1714179042290,-500.0,0.00012899,2]
[323710387,1714179042299,-500.0,0.00012899,2]
[323710390,1714179042312,-966.73,0.00012899,2]
[323710393,1714179042321,-500.0,0.00012899,2]
[323710395,1714179042330,-619.92,0.00012899,2]
[323710397,1714179042340,-500.0,0.00012899,2]
[323710399,1714179042349,-500.0,0.00012899,2]
[323710401,1714179042360,-194.8386271,0.00012899,2]
[323710403,1714179042369,-500.0,0.00012899,2]
[323710405,1714179042378,-500.0,0.00012899,2]
[323710406,1714179042389,-500.0,0.00012899,2]
[323710408,1714179042399,-500.0,0.00012899,2]
[323710409,1714179042409,-169.7130042,0.00012899,2]
[323710410,1714179042418,-500.0,0.00012899,2]
[323710411,1714179042427,-500.0,0.00012899,2]
[323710412,1714179042436,-500.0,0.00012899,2]
[323710413,1714179042445,-500.0,0.00012899,2]
[323710414,1714179042454,-500.0,0.00012899,2]
[323710415,1714179042463,-439.53,0.00012899,2]
[323710416,1714179042473,-500.0,0.00012899,2]
[323710417,1714179042483,-500.0,0.00012899,2]
[323710418,1714179042493,-500.0,0.00012899,2]
[323710419,1714179042502,-500.0,0.00012899,2]
[323710420,1714179042512,-500.0,0.00012899,2]
[323710421,1714179042521,-500.0,0.00012899,2]
[323710422,1714179042530,-500.0,0.00012899,2]
[323710423,1714179042540,-500.0,0.00012899,2]
[323710424,1714179042549,-611.25,0.00012899,2]
[323710425,1714179042558,-2019.67,0.00012899,2]
[323710426,1714179042567,-500.0,0.00012899,2]
[323710427,1714179042576,-500.0,0.00012899,2]
[323710428,1714179042585,-500.0,0.00012899,2]
[323710430,1714179042594,-500.0,0.00012899,2]
[323710431,1714179042604,-500.0,0.00012899,2]
[323710433,1714179042612,-500.0,0.00012899,2]
[323710434,1714179042621,-500.0,0.00012899,2]
[323710438,1714179042631,-500.0,0.00012899,2]
[323710442,1714179042640,-892.28,0.00012899,2]
[323710445,1714179042650,-500.0,0.00012899,2]
[323710448,1714179042658,-500.0,0.00012899,2]
[323710450,1714179042667,-307.11,0.00012899,2]
[323710452,1714179042678,-500.0,0.00012899,2]
[323710454,1714179042687,-434.23,0.00012899,2]
[323710455,1714179042696,-500.0,0.00012899,2]
[323710457,1714179042705,-500.0,0.00012899,2]
[323710459,1714179042714,-500.0,0.00012899,2]
[323710461,1714179042723,-500.0,0.00012899,2]
[323710466,1714179042731,-500.0,0.00012899,2]
[323710468,1714179042741,-500.0,0.00012899,2]
[323710471,1714179042750,-500.0,0.00012899,2]
[323710474,1714179042761,-500.0,0.00012899,2]
[323710478,1714179042770,-500.0,0.00012899,2]
[323710481,1714179042779,-588.74,0.00012899,2]
[323710483,1714179042788,-517.88,0.00012899,2]
[323710485,1714179042797,-500.0,0.00012899,2]
[323710487,1714179042806,-500.0,0.00012899,2]
[323710489,1714179042815,-500.0,0.00012899,2]
[323710490,1714179042824,-500.0,0.00012899,2]
[323710492,1714179042833,-500.0,0.00012899,2]
[323710494,1714179042842,-500.0,0.00012899,2]
[323710495,1714179042852,-500.0,0.00012899,2]
[323710497,1714179042861,-500.0,0.00012899,2]
[323710498,1714179042870,-500.0,0.00012899,2]
[323710500,1714179042879,-1293.14,0.00012899,2]
[323710502,1714179042888,-500.0,0.00012899,2]
[323710504,1714179042897,-500.0,0.00012899,2]
[323710505,1714179042906,-500.0,0.00012899,2]
[323710506,1714179042915,-500.0,0.00012899,2]
[323710507,1714179042924,-500.0,0.00012899,2]
[323710508,1714179042933,-500.0,0.00012899,2]
[323710509,1714179042942,-500.0,0.00012899,2]
[323710510,1714179042952,-500.0,0.00012899,2]
[323710511,1714179042961,-1000.0,0.000129,2]
[323710512,1714179042970,-10000.0,0.000129,2]
[323710513,1714179042979,-7078.85161815,0.000129,2]
[323710514,1714179043051,-353.55961219,0.00012899,2]
[323710515,1714179043063,-146.44038781,0.00012899,2]
[323710516,1714179043072,-123457.00348185,0.000129,2]
[323710517,1714179043082,-26133.3351,0.000129,2]
[323710518,1714179043091,-180.21956281,0.000129,2]
[323710519,1714179043100,-365.97088217,0.000129,2]
[323710520,1714179043110,-200.0,0.000129,4]
[323710521,1714179043119,-993.9259934,0.0001295,2]
[323710522,1714179043127,-156.63444584,0.0001298,2]
[323710523,1714179043136,-509.0,0.00012986,2]
[323710524,1714179043145,-567.0,0.00012986,2]
[323710525,1714179043155,-177095.59015185,0.0001299,2]
[323710526,1714179043166,-28824.92770861,0.0001299,2]
[323710527,1714179043177,-939.64257484,0.0001299,2]
[323710528,1714179043189,-438.37499996,0.0001299,2]
[323710529,1714179043201,-625.80856535,0.0001299,2]
[323710530,1714179043213,-278.278,0.0001299,2]
[323710531,1714179043225,-24023.99948828,0.0001299,2]
[323710532,1714179043339,-500.0,0.00012898,2]
[323710533,1714179043349,-193.13401046,0.0001299,2]
[323710534,1714179043361,-308.54,0.0001299,2]
[323710535,1714179043373,-4249.05561496,0.0001299,2]
[323710536,1714179043396,-3284.54187124,0.0001299,2]
[323710537,1714179043408,-755.964,0.0001299,2]
[323710538,1714179043420,-265938.47778419,0.0001299,2]
[323710539,1714179043436,-316.0,0.0001299,2]
[323710540,1714179043447,-2424.84669876,0.0001299,2]
[323710541,1714179043459,-33370.36231882,0.0001299,2]
[323710542,1714179043475,-504.0,0.0001299,2]
[323710543,1714179043691,-2898.67779042,0.000129,2]
[323710544,1714179043702,-3800.4858,0.000129,2]
[323710545,1714179043720,-833.2000005,0.000129,2]
[323710546,1714179043732,-404.41077567,0.000129,2]
[323710547,1714179043744,-630.63,0.000129,2]
[323710548,1714179043756,-2576.68562746,0.000129,2]
[323710549,1714179043768,-1340.55576,0.000129,2]
[323710550,1714179044243,-2743.60337896,0.00012897,2]
[323710567,1714179045586,-555.0,0.00012328,2]
[323710569,1714179045596,-148762.26242273,0.00012897,2]
[323710573,1714179045637,-495.78501686,0.00012897,2]
[323710575,1714179045648,-776.425,0.00012897,2]
[323710576,1714179045659,-1575.65,0.00012897,2]
[323710577,1714179045671,-335.27295591,0.00012897,2]
[323710578,1714179045693,-2427.74727801,0.00012897,2]
[323710579,1714179046221,-1740.00000044,0.00012897,2]
[323710641,1714180232710,-256.27,8.966e-05,2]
[323710642,1714180232721,-155.0,8.988e-05,2]
[323710643,1714180232731,-621.78404617,8.989e-05,2]
[323710644,1714180232741,-207.8305692,8.989e-05,2]
[323710645,1714180232752,-441.05698349,0.000101,2]
[323710646,1714180232762,-4333.55292304,0.00010399,2]
[323710647,1714180232772,-545.09469603,0.000104,2]
[323710648,1714180232782,-271.23,0.00010767,2]
[323710649,1714180232792,-499.99,0.00010767,2]
[323710650,1714180232802,-378.16,0.00010767,2]
[323710651,1714180232812,-150.75,0.00010812,2]
[323710652,1714180232821,-466.46,0.00010812,2]
[323710653,1714180232830,-12875.82,0.00010834,2]
[323710654,1714180232840,-450.63,0.00010835,2]
[323710655,1714180232854,-1102.31,0.00010857,2]
[323710656,1714180232863,-918.55,0.00010899,2]
[323710657,1714180232874,-155.0,0.000109,2]
[323710658,1714180232883,-165.55,0.00010939,2]
[323710659,1714180232893,-150.0,0.00010959,2]
[323710660,1714180232903,-218.6,0.00011018,2]
[323710661,1714180232913,-165.55,0.00011224,2]
[323710662,1714180232922,-256.27,0.0001123,2]
[323710663,1714180232931,-162.38,0.00011284,2]
[323710664,1714180232941,-8989.11201456,0.00011288,2]
[323710665,1714180232951,-162.38,0.00011289,2]
[323710666,1714180232960,-162.38,0.00011294,2]
[323710667,1714180232969,-162.38,0.00011299,2]
[323710668,1714180232978,-162.38,0.00011305,2]
[323710669,1714180232988,-162.38,0.0001131,2]
[323710670,1714180232998,-162.38,0.00011315,2]
[323710671,1714180233008,-162.38,0.0001132,2]
[323710672,1714180233017,-162.38,0.00011325,2]
[323710673,1714180233027,-162.38,0.0001133,2]
[323710674,1714180233036,-162.38,0.00011335,2]
[323710675,1714180233045,-162.38,0.0001134,2]
[323710676,1714180233067,-1000.0,0.00011344,2]
[323710677,1714180233078,-166.18,0.00011363,2]
[323710678,1714180233087,-165.55,0.00011509,2]
[323710679,1714180233102,-5000.0,0.00012,2]
[323710680,1714180233112,-500.0,0.000121,4]
[323710681,1714180233121,-168.56,0.00012105,2]
[323710682,1714180233131,-271.23,0.00012113,2]
[323710683,1714180233140,-159.96,0.00012192,2]
[323710685,1714180233150,-522.18,0.00012192,2]
[323710686,1714180233160,-150.0,0.00012192,2]
[323710687,1714180233169,-150.0,0.00012192,2]
[323710688,1714180233179,-522.18,0.00012192,2]
[323710689,1714180233189,-150.0,0.00012192,2]
[323710690,1714180233199,-350.55,0.00012192,2]
[323710691,1714180233209,-325.4,0.00012192,2]
[323710692,1714180233220,-522.18,0.00012192,2]
[323710693,1714180233231,-150.0,0.00012192,2]
[323710694,1714180233241,-150.0,0.00012192,2]
[323710695,1714180233251,-150.0,0.00012192,2]
[323710696,1714180233261,-350.55,0.00012192,2]
[323710697,1714180233272,-522.18,0.00012192,2]
[323710698,1714180233282,-150.0,0.00012192,2]
[323710699,1714180233293,-350.31,0.00012192,2]
[323710700,1714180233303,-150.0,0.00012192,2]
[323710701,1714180233313,-150.0,0.00012192,2]
[323710702,1714180233323,-521.63,0.00012192,2]
[323710703,1714180233333,-150.0,0.00012192,2]
[323710704,1714180233346,-150.0,0.00012192,2]
[323710705,1714180233356,-150.0,0.00012192,2]
[323710706,1714180233367,-150.0,0.00012192,2]
[323710707,1714180233378,-150.0,0.00012192,2]
[323710708,1714180233388,-1100.0,0.000122,4]
[323710709,1714180233397,-235.68,0.00012245,2]
[323710710,1714180233407,-1655.40252715,0.0001225,2]
[323710711,1714180233418,-1700.0,0.000123,4]
[323710712,1714180233427,-548.0,0.00012328,2]
[323710713,1714180233437,-562.0,0.00012328,2]
[323710714,1714180233447,-2300.0,0.000124,4]
[323710715,1714180233457,-2900.0,0.000125,4]
[323710716,1714180233467,-500.0,0.000126,4]
[323710717,1714180233477,-150.75,0.00012615,2]
[323710718,1714180233486,-10874.1571,0.00012697,2]
[323710719,1714180233496,-2067.288,0.00012698,2]
[323710720,1714180233506,-1000.0,0.00012698,2]
[323710721,1714180233516,-7500.0,0.00012698,2]
[323710722,1714180233526,-500.0,0.000127,4]
[323710723,1714180233536,-1000.0,0.00012762,2]
[323710724,1714180233545,-516.65566223,0.00012787,2]
[323710725,1714180233555,-516.65566223,0.00012787,2]
[323710726,1714180233566,-516.65566223,0.00012787,2]
[323710727,1714180233577,-516.65566223,0.00012787,2]
[323710728,1714180233587,-516.65566223,0.00012787,2]
[323710729,1714180233604,-516.65566223,0.00012787,2]
[323710730,1714180233615,-516.65566223,0.00012787,2]
[323710731,1714180233626,-516.65566223,0.00012787,2]
[323710732,1714180233637,-516.65566223,0.00012788,2]
[323710733,1714180233648,-516.65566223,0.00012788,2]
[323710734,1714180233660,-186.67421877,0.00012795,2]
[323710735,1714180233674,-765.4445,0.00012795,2]
[323710736,1714180233685,-6545.1193,0.00012795,2]
[323710737,1714180233695,-537.58418051,0.00012796,2]
[323710738,1714180233711,-155.0,0.00012796,2]
[323710739,1714180233722,-2215.83251815,0.00012796,2]
[323710740,1714180233732,-47000.6368,0.00012797,2]
[323710741,1714180233742,-43821.6663,0.00012797,2]
[323710742,1714180233752,-5471.16073376,0.00012797,2]
[323710743,1714180233762,-500.0,0.00012797,2]
[323710744,1714180233772,-869.1,0.00012797,2]
[323710745,1714180233997,-500.0,0.00012797,2]
[323710746,1714180234016,-500.0,0.00012797,2]
[323710747,1714180234026,-957.65,0.00012797,2]
[323710748,1714180234035,-500.0,0.00012797,2]
[323710749,1714180234045,-500.0,0.00012797,2]
[323710750,1714180234054,-500.0,0.00012797,2]
[323710751,1714180234064,-1885.6,0.00012797,2]
[323710752,1714180234074,-810.45,0.00012797,2]
[323710753,1714180234085,-500.0,0.00012797,2]
[323710754,1714180234102,-500.0,0.00012797,2]
[323710755,1714180234112,-500.0,0.00012797,2]
[323710756,1714180234122,-911.64,0.00012797,2]
[323710757,1714180234132,-500.0,0.00012797,2]
[323710758,1714180234142,-500.0,0.00012797,2]
[323710759,1714180234152,-500.0,0.00012797,2]
[323710760,1714180234162,-500.0,0.00012797,2]
[323710761,1714180234172,-500.0,0.00012797,2]
[323710762,1714180234182,-500.0,0.00012797,2]
[323710763,1714180234192,-500.0,0.00012797,2]
[323710764,1714180234201,-520.17,0.00012797,2]
[323710765,1714180234211,-500.0,0.00012797,2]
[323710766,1714180234221,-500.0,0.00012797,2]
[323710767,1714180234231,-500.0,0.00012797,2]
[323710768,1714180234241,-500.0,0.00012797,2]
[323710769,1714180234252,-500.0,0.00012797,2]
[323710770,1714180234261,-500.0,0.00012797,2]
[323710771,1714180234270,-500.0,0.00012797,2]
[323710772,1714180234280,-500.0,0.00012797,2]
[323710773,1714180234289,-500.0,0.00012797,2]
[323710774,1714180234298,-502.14,0.00012797,2]
[323710775,1714180234308,-500.0,0.00012797,2]
[323710776,1714180234318,-500.0,0.00012797,2]
[323710777,1714180234327,-500.0,0.00012797,2]
[323710778,1714180234336,-500.0,0.00012797,2]
[323710779,1714180234352,-1447.58,0.00012797,2]
[323710780,1714180234362,-535.6,0.00012797,2]
[323710781,1714180234371,-1078.31,0.00012797,2]
[323710782,1714180234381,-500.0,0.00012797,2]
[323710783,1714180234391,-1214.69,0.00012797,2]
[323710784,1714180234401,-500.0,0.00012797,2]
[323710785,1714180234411,-509.23,0.00012797,2]
[323710786,1714180234421,-500.0,0.00012797,2]
[323710787,1714180234431,-500.0,0.00012797,2]
[323710788,1714180234440,-500.0,0.00012797,2]
[323710789,1714180234451,-500.0,0.00012797,2]
[323710790,1714180234461,-500.0,0.00012797,2]
[323710791,1714180234471,-500.0,0.00012797,2]
[323710792,1714180234481,-653.95,0.00012797,2]
[323710793,1714180234491,-500.0,0.00012797,2]
[323710794,1714180234501,-500.0,0.00012797,2]
[323710795,1714180234510,-500.0,0.00012797,2]
[323710796,1714180234520,-739.54,0.00012797,2]
[323710797,1714180234530,-1438.77,0.00012797,2]
[323710798,1714180234539,-500.0,0.00012797,2]
[323710799,1714180234549,-500.0,0.00012797,2]
[323710800,1714180234559,-500.0,0.00012797,2]
[323710801,1714180234569,-771.75,0.00012797,2]
[323710802,1714180234579,-500.0,0.00012797,2]
[323710803,1714180234590,-594.67278002,0.00012797,2]
[323710804,1714180234606,-500.0,0.00012797,2]
[323710805,1714180234615,-500.0,0.00012797,2]
[323710806,1714180234625,-500.0,0.00012797,2]
[323710807,1714180234635,-500.0,0.00012797,2]
[323710808,1714180234645,-500.0,0.00012797,2]
[323710809,1714180234655,-1204.01,0.00012797,2]
[323710810,1714180234666,-3479.91,0.00012797,2]
[323710811,1714180234678,-2791.94,0.00012797,2]
[323710812,1714180234687,-500.0,0.00012797,2]
[323710813,1714180234699,-500.17921573,0.00012797,2]
[323710814,1714180234710,-500.0,0.00012797,2]
[323710815,1714180234720,-500.0,0.00012797,2]
[323710816,1714180234730,-500.0,0.00012798,2]
[323710817,1714180234740,-559.1879896,0.00012798,2]
[323710818,1714180234749,-500.0,0.00012798,2]
[323710819,1714180234760,-500.0,0.00012798,2]
[323710820,1714180234769,-500.0,0.00012798,2]
[323710821,1714180234779,-500.0,0.00012798,2]
[323710822,1714180234789,-500.0,0.00012798,2]
[323710823,1714180234799,-500.0,0.00012798,2]
[323710824,1714180234809,-500.0,0.00012798,2]
[323710825,1714180234819,-500.0,0.00012798,2]
[323710826,1714180234828,-500.0,0.00012798,2]
[323710827,1714180234838,-500.0,0.00012798,2]
[323710828,1714180234851,-500.0,0.00012798,2]
[323710829,1714180234861,-500.0,0.00012798,2]
[323710830,1714180234871,-500.0,0.00012798,2]
[323710831,1714180234881,-500.0,0.00012798,2]
[323710832,1714180234890,-500.0,0.00012798,2]
[323710833,1714180234899,-500.0,0.00012798,2]
[323710834,1714180234909,-472.11,0.00012798,2]
[323710835,1714180234919,-547.34124655,0.00012798,2]
[323710836,1714180234928,-500.0,0.00012798,2]
[323710837,1714180234937,-500.0,0.00012798,2]
[323710838,1714180234946,-500.0,0.00012798,2]
[323710839,1714180234956,-500.0,0.00012798,2]
[323710840,1714180234967,-500.0,0.00012798,2]
[323710841,1714180234976,-500.0,0.00012798,2]
[323710842,1714180234985,-500.0,0.00012798,2]
[323710843,1714180234994,-500.0,0.00012798,2]
[323710844,1714180235004,-500.0,0.00012798,2]
[323710845,1714180235013,-500.0,0.00012798,2]
[323710846,1714180235022,-221.09855849,0.00012798,2]
[323710847,1714180235316,-283.50144151,0.00012798,2]
[323710848,1714180235326,-500.0,0.00012798,2]
[323710849,1714180235337,-500.0,0.00012798,2]
[323710850,1714180235354,-500.0,0.00012798,2]
[323710851,1714180235363,-500.0,0.00012798,2]
[323710852,1714180235374,-500.0,0.00012798,2]
[323710853,1714180235385,-500.0,0.00012798,2]
[323710854,1714180235396,-500.0,0.00012798,2]
[323710855,1714180235406,-649.86260267,0.00012798,2]
[323710856,1714180235417,-500.0,0.00012798,2]
[323710857,1714180235428,-500.0,0.00012798,2]
[323710858,1714180235438,-500.0,0.00012798,2]
[323710859,1714180235449,-500.0,0.00012798,2]
[323710860,1714180235459,-500.0,0.00012798,2]
[323710861,1714180235470,-500.0,0.00012798,2]
[323710862,1714180235480,-500.0,0.00012798,2]
[323710863,1714180235490,-493.71,0.00012798,2]
[323710864,1714180235501,-500.0,0.00012798,2]
[323710865,1714180235512,-376.70595581,0.00012798,2]
[323710874,1714180238384,-155.0,8.965e-05,2]
[323710876,1714180238394,-196.13088306,0.00012797,2]
[323710885,1714180238446,-303.86911694,0.00012797,2]
[323710887,1714180238456,-123.29404419,0.00012798,2]
[323710889,1714180238465,-500.0,0.00012798,2]
[323710891,1714180238475,-500.0,0.00012798,2]
[323710892,1714180238484,-500.0,0.00012798,2]
[323710894,1714180238494,-500.0,0.00012798,2]
[323710896,1714180238503,-500.0,0.00012798,2]
[323710898,1714180238512,-500.0,0.00012798,2]
[323710900,1714180238522,-436.85469794,0.00012798,2]
[323710903,1714180238539,-63.14530206,0.00012798,2]
[323710905,1714180238549,-500.0,0.00012798,2]
[323710906,1714180238558,-500.0,0.00012798,2]
[323710907,1714180238567,-500.0,0.00012798,2]
[323710908,1714180238576,-500.0,0.00012798,2]
[323710909,1714180238585,-500.0,0.00012798,2]
[323710910,1714180238598,-500.0,0.00012798,2]
[323710911,1714180238608,-270.01,0.00012798,2]
[323710912,1714180238617,-500.0,0.00012798,2]
[323710913,1714180238627,-533.61,0.00012798,2]
[323710914,1714180238637,-500.0,0.00012798,2]
[323710915,1714180238645,-500.0,0.00012798,2]
[323710916,1714180238655,-500.0,0.00012798,2]
[323710917,1714180238664,-500.0,0.00012798,2]